[Event "Titled Tuesday Blitz January 31 Early 2023"]
[White "Reprintsev, Alexander"]
[Black "Turzo, Attila"]
[WhiteFideId "14100541"]
[BlackFideId "704954"]
[WhiteElo "2253"]
[BlackElo "2279"]
[Result "0-1"]
[Round "08"]
[TimeControl "180+2"]
[Date "2023.01.31"]
[WhiteClock "0:00:15"]
[BlackClock "0:00:31"]

1. e4 {[%clk 0:02:43]}  c5 {[%clk 0:02:55]} 2. b3 {[%clk 0:02:31]}  Nc6 {[%clk 0:02:52]} 3. Bb2 {[%clk 0:02:31]}  e5 {[%clk 0:02:52]} 4. f4 {[%clk 0:02:17]}  exf4 {[%clk 0:02:51]} 5. Qf3 {[%clk 0:02:10]}  Qh4+ {[%clk 0:02:44]} 6. g3 {[%clk 0:01:59]}  fxg3 {[%clk 0:02:43]} 7. hxg3 {[%clk 0:01:59]}  Qe7 {[%clk 0:02:32]} 8. Bc4 {[%clk 0:01:58]}  Nf6 {[%clk 0:02:28]} 9. Bxf6 {[%clk 0:01:57]}  Qxf6 {[%clk 0:02:27]} 10. Qxf6 {[%clk 0:01:57]}  gxf6 {[%clk 0:02:28]} 11. Nc3 {[%clk 0:01:57]}  Bd6 {[%clk 0:02:22]} 12. Nge2 {[%clk 0:01:55]}  Be5 {[%clk 0:02:17]} 13. O-O-O {[%clk 0:01:55]}  d6 {[%clk 0:02:13]} 14. Rdf1 {[%clk 0:01:53]}  Be6 {[%clk 0:02:11]} 15. Nf4 {[%clk 0:01:48]}  Bxc3 {[%clk 0:02:01]} 16. dxc3 {[%clk 0:01:39]}  Ke7 {[%clk 0:01:51]} 17. Bd5 {[%clk 0:01:36]}  Rab8 {[%clk 0:01:47]} 18. Nh5 {[%clk 0:01:34]}  Rbg8 {[%clk 0:01:32]} 19. c4 {[%clk 0:01:13]}  Rg6 {[%clk 0:01:29]} 20. Rf3 {[%clk 0:01:10]}  Ne5 {[%clk 0:01:25]} 21. Rc3 {[%clk 0:01:05]}  Bxd5 {[%clk 0:01:24]} 22. cxd5 {[%clk 0:01:03]}  Rg4 {[%clk 0:01:15]} 23. Re3 {[%clk 0:01:00]}  Rhg8 {[%clk 0:01:13]} 24. Rf1 {[%clk 0:00:59]}  Nd7 {[%clk 0:01:12]} 25. Rf5 {[%clk 0:00:55]}  R8g5 {[%clk 0:01:10]} 26. Ref3 {[%clk 0:00:53]}  Rxf5 {[%clk 0:01:04]} 27. exf5 {[%clk 0:00:51]}  Rg5 {[%clk 0:01:00]} 28. Nf4 {[%clk 0:00:44]}  Rxf5 {[%clk 0:01:00]} 29. c4 {[%clk 0:00:43]}  Rg5 {[%clk 0:00:50]} 30. Re3+ {[%clk 0:00:42]}  Ne5 {[%clk 0:00:50]} 31. Kd2 {[%clk 0:00:41]}  Kf8 {[%clk 0:00:42]} 32. Ke2 {[%clk 0:00:40]}  Ng6 {[%clk 0:00:41]} 33. Nh3 {[%clk 0:00:31]}  Re5 {[%clk 0:00:40]} 34. Kf3 {[%clk 0:00:27]}  Rxe3+ {[%clk 0:00:40]} 35. Kxe3 {[%clk 0:00:28]}  f5 {[%clk 0:00:38]} 36. Ng5 {[%clk 0:00:24]}  Kg7 {[%clk 0:00:37]} 37. Nf3 {[%clk 0:00:22]}  Kf6 {[%clk 0:00:36]} 38. a3 {[%clk 0:00:21]}  h5 {[%clk 0:00:34]} 39. b4 {[%clk 0:00:21]}  b6 {[%clk 0:00:34]} 40. b5 {[%clk 0:00:17]}  Ne5 {[%clk 0:00:33]} 41. Nd2 {[%clk 0:00:17]}  Kg5 {[%clk 0:00:31]} 42. a4 {[%clk 0:00:15]}  Kg4 {[%clk 0:00:31]} 43. Kf2 {[%clk 0:00:15]}  f4 {[%clk 0:00:30]} 44. gxf4 {[%clk 0:00:15]}  Kxf4 {[%clk 0:00:31]} 0-1


[Site "https://www.chess.com"]

[Event "Titled Tuesday Blitz January 31 Early 2023"]
[White "EREBUNI91"]
[Black "Ambartsumova, Karina"]
[BlackFideId "4166299"]
[WhiteElo "2542"]
[BlackElo "2393"]
[Result "1-0"]
[Round "08"]
[TimeControl "180+2"]
[Date "2023.01.31"]
[WhiteClock "0:01:14"]
[BlackClock "0:00:01"]

1. e4 {[%clk 0:03:00]}  e5 {[%clk 0:02:59]} 2. Nf3 {[%clk 0:03:00]}  Nc6 {[%clk 0:03:00]} 3. Bb5 {[%clk 0:03:00]}  a6 {[%clk 0:03:00]} 4. Ba4 {[%clk 0:03:00]}  Nf6 {[%clk 0:03:00]} 5. O-O {[%clk 0:03:01]}  Be7 {[%clk 0:03:00]} 6. Bxc6 {[%clk 0:03:01]}  dxc6 {[%clk 0:02:57]} 7. d3 {[%clk 0:03:02]}  Bg4 {[%clk 0:02:46]} 8. h3 {[%clk 0:03:01]}  h5 {[%clk 0:02:35]} 9. hxg4 {[%clk 0:02:53]}  hxg4 {[%clk 0:02:35]} 10. Nxe5 {[%clk 0:02:49]}  Bd6 {[%clk 0:02:23]} 11. Bf4 {[%clk 0:02:48]}  Nh5 {[%clk 0:01:45]} 12. Qxg4 {[%clk 0:02:47]}  Nxf4 {[%clk 0:01:27]} 13. Qxf4 {[%clk 0:02:46]}  f6 {[%clk 0:01:17]} 14. d4 {[%clk 0:02:46]}  Qe7 {[%clk 0:01:06]} 15. g3 {[%clk 0:02:15]}  fxe5 {[%clk 0:01:04]} 16. Qg4 {[%clk 0:02:16]}  exd4 {[%clk 0:00:52]} 17. Nd2 {[%clk 0:02:15]}  Qd7 {[%clk 0:00:43]} 18. Qg6+ {[%clk 0:02:09]}  Qf7 {[%clk 0:00:43]} 19. Qxf7+ {[%clk 0:02:07]}  Kxf7 {[%clk 0:00:44]} 20. f4 {[%clk 0:02:07]}  Rad8 {[%clk 0:00:32]} 21. Kg2 {[%clk 0:02:05]}  d3 {[%clk 0:00:29]} 22. cxd3 {[%clk 0:02:01]}  Bb4 {[%clk 0:00:29]} 23. Nc4 {[%clk 0:02:01]}  Bc5 {[%clk 0:00:14]} 24. Rac1 {[%clk 0:01:59]}  Bd4 {[%clk 0:00:14]} 25. Rc2 {[%clk 0:01:53]}  c5 {[%clk 0:00:13]} 26. b3 {[%clk 0:01:50]}  b6 {[%clk 0:00:11]} 27. Nd2 {[%clk 0:01:48]}  Be3 {[%clk 0:00:06]} 28. Nf3 {[%clk 0:01:47]}  Bd4 {[%clk 0:00:05]} 29. g4 {[%clk 0:01:45]}  Rd7 {[%clk 0:00:05]} 30. Rc4 {[%clk 0:01:43]}  Rhd8 {[%clk 0:00:05]} 31. g5 {[%clk 0:01:38]}  Ke7 {[%clk 0:00:05]} 32. Rh1 {[%clk 0:01:34]}  Bb2 {[%clk 0:00:03]} 33. Rc2 {[%clk 0:01:32]}  Bd4 {[%clk 0:00:01]} 34. f5 {[%clk 0:01:25]}  a5 {[%clk 0:00:01]} 35. Rh7 {[%clk 0:01:24]}  Kf7 {[%clk 0:00:02]} 36. Nxd4 {[%clk 0:01:19]}  Rxd4 {[%clk 0:00:02]} 37. f6 {[%clk 0:01:20]}  Rxd3 {[%clk 0:00:02]} 38. Rxg7+ {[%clk 0:01:20]}  Ke6 {[%clk 0:00:03]} 39. Re7+ {[%clk 0:01:18]}  Kd6 {[%clk 0:00:02]} 40. g6 {[%clk 0:01:14]}  Rg8 {[%clk 0:00:01]} 41. g7 {[%clk 0:01:14]} 1-0


[Site "https://www.chess.com"]

[Event "Titled Tuesday Blitz January 31 Early 2023"]
[White "Mammadzada, Gunay"]
[Black "Bruned, Yvain"]
[WhiteFideId "13403729"]
[BlackFideId "2250292"]
[WhiteElo "2449"]
[BlackElo "2286"]
[Result "0-1"]
[Round "08"]
[TimeControl "180+2"]
[Date "2023.01.31"]
[WhiteClock "0:00:02"]
[BlackClock "0:00:06"]

1. e4 {[%clk 0:03:00]}  b6 {[%clk 0:02:55]} 2. d4 {[%clk 0:03:00]}  Bb7 {[%clk 0:02:56]} 3. Bd3 {[%clk 0:03:01]}  e6 {[%clk 0:02:57]} 4. c4 {[%clk 0:03:00]}  Bb4+ {[%clk 0:02:55]} 5. Bd2 {[%clk 0:03:00]}  Bxd2+ {[%clk 0:02:52]} 6. Qxd2 {[%clk 0:03:01]}  d6 {[%clk 0:02:51]} 7. Nc3 {[%clk 0:02:59]}  Nd7 {[%clk 0:02:52]} 8. Nge2 {[%clk 0:02:56]}  e5 {[%clk 0:02:52]} 9. O-O {[%clk 0:02:55]}  Ngf6 {[%clk 0:02:52]} 10. f4 {[%clk 0:02:54]}  O-O {[%clk 0:02:51]} 11. fxe5 {[%clk 0:02:40]}  dxe5 {[%clk 0:02:52]} 12. d5 {[%clk 0:02:40]}  a5 {[%clk 0:02:47]} 13. Ng3 {[%clk 0:02:39]}  Nc5 {[%clk 0:02:41]} 14. Bc2 {[%clk 0:02:39]}  Bc8 {[%clk 0:02:39]} 15. b3 {[%clk 0:02:34]}  Qe7 {[%clk 0:02:33]} 16. h3 {[%clk 0:02:29]}  Bd7 {[%clk 0:02:31]} 17. Rf2 {[%clk 0:02:29]}  Ne8 {[%clk 0:02:28]} 18. Raf1 {[%clk 0:02:28]}  f6 {[%clk 0:02:25]} 19. Nd1 {[%clk 0:02:20]}  Nd6 {[%clk 0:02:25]} 20. Ne3 {[%clk 0:02:18]}  Qe8 {[%clk 0:02:16]} 21. Nef5 {[%clk 0:02:10]}  Bxf5 {[%clk 0:02:12]} 22. exf5 {[%clk 0:02:07]}  Qe7 {[%clk 0:01:59]} 23. a3 {[%clk 0:02:02]}  Na6 {[%clk 0:01:58]} 24. Bd3 {[%clk 0:01:48]}  Nb7 {[%clk 0:01:53]} 25. Qc1 {[%clk 0:01:42]}  Nac5 {[%clk 0:01:46]} 26. Bc2 {[%clk 0:01:43]}  Na6 {[%clk 0:01:46]} 27. Re1 {[%clk 0:01:37]}  Kh8 {[%clk 0:01:45]} 28. Re4 {[%clk 0:01:36]}  Nbc5 {[%clk 0:01:35]} 29. Rh4 {[%clk 0:01:35]}  Rad8 {[%clk 0:01:30]} 30. Nh5 {[%clk 0:01:34]}  Nb7 {[%clk 0:01:20]} 31. Rf3 {[%clk 0:01:17]}  Nd6 {[%clk 0:01:16]} 32. Rg3 {[%clk 0:01:15]}  Rg8 {[%clk 0:01:15]} 33. Rg6 {[%clk 0:01:10]}  Nf7 {[%clk 0:00:56]} 34. Ng3 {[%clk 0:00:41]}  Nh6 {[%clk 0:00:47]} 35. Kh1 {[%clk 0:00:28]}  Nc5 {[%clk 0:00:37]} 36. Kh2 {[%clk 0:00:14]}  Nb7 {[%clk 0:00:35]} 37. Qe3 {[%clk 0:00:11]}  Nd6 {[%clk 0:00:31]} 38. b4 {[%clk 0:00:03]}  axb4 {[%clk 0:00:30]} 39. axb4 {[%clk 0:00:04]}  Ndf7 {[%clk 0:00:24]} 40. c5 {[%clk 0:00:01]}  bxc5 {[%clk 0:00:23]} 41. bxc5 {[%clk 0:00:02]}  Rxd5 {[%clk 0:00:22]} 42. Bb3 {[%clk 0:00:02]}  Qxc5 {[%clk 0:00:16]} 43. Qf3 {[%clk 0:00:01]}  Rd7 {[%clk 0:00:11]} 44. Bxf7 {[%clk 0:00:02]}  Rxf7 {[%clk 0:00:12]} 45. Rgxh6 {[%clk 0:00:01]}  gxh6 {[%clk 0:00:12]} 46. Rxh6 {[%clk 0:00:02]}  Qf8 {[%clk 0:00:07]} 47. Rh5 {[%clk 0:00:02]}  Rfg7 {[%clk 0:00:06]} 0-1


[Site "https://www.chess.com"]

[Event "Titled Tuesday Blitz January 31 Early 2023"]
[White "Myshakov, Fyodor"]
[Black "Shapiro, Viktor"]
[WhiteFideId "14111284"]
[BlackFideId "4175700"]
[WhiteElo "2292"]
[BlackElo "2192"]
[Result "0-1"]
[Round "08"]
[TimeControl "180+2"]
[Date "2023.01.31"]
[WhiteClock "0:00:14"]
[BlackClock "0:01:04"]

1. c4 {[%clk 0:02:59]}  Nf6 {[%clk 0:03:00]} 2. Nc3 {[%clk 0:02:59]}  c5 {[%clk 0:03:01]} 3. Nf3 {[%clk 0:02:59]}  Nc6 {[%clk 0:03:02]} 4. g3 {[%clk 0:03:00]}  d6 {[%clk 0:03:02]} 5. Bg2 {[%clk 0:03:00]}  g6 {[%clk 0:03:03]} 6. O-O {[%clk 0:03:01]}  Bg7 {[%clk 0:03:03]} 7. d4 {[%clk 0:03:01]}  Bd7 {[%clk 0:03:03]} 8. d5 {[%clk 0:03:01]}  Na5 {[%clk 0:03:04]} 9. Nd2 {[%clk 0:03:00]}  a6 {[%clk 0:03:04]} 10. e4 {[%clk 0:03:01]}  O-O {[%clk 0:03:04]} 11. Re1 {[%clk 0:02:58]}  b5 {[%clk 0:03:04]} 12. cxb5 {[%clk 0:02:56]}  axb5 {[%clk 0:03:04]} 13. e5 {[%clk 0:02:55]}  Ne8 {[%clk 0:02:54]} 14. e6 {[%clk 0:02:53]}  Bc8 {[%clk 0:02:53]} 15. Nxb5 {[%clk 0:02:48]}  Rb8 {[%clk 0:02:49]} 16. a4 {[%clk 0:02:47]}  fxe6 {[%clk 0:02:47]} 17. dxe6 {[%clk 0:02:45]}  Bb7 {[%clk 0:02:46]} 18. Ne4 {[%clk 0:02:45]}  Nc7 {[%clk 0:02:42]} 19. Ng5 {[%clk 0:02:44]}  Bxg2 {[%clk 0:02:41]} 20. Kxg2 {[%clk 0:02:45]}  Nxb5 {[%clk 0:02:38]} 21. axb5 {[%clk 0:02:44]}  Rxb5 {[%clk 0:02:38]} 22. Qe2 {[%clk 0:02:41]}  Qb8 {[%clk 0:02:33]} 23. Qe4 {[%clk 0:02:19]}  Rb4 {[%clk 0:02:12]} 24. Qd3 {[%clk 0:02:14]}  Qb7+ {[%clk 0:02:08]} 25. Kg1 {[%clk 0:02:13]}  Nb3 {[%clk 0:02:08]} 26. Ra2 {[%clk 0:02:04]}  Nxc1 {[%clk 0:01:59]} 27. Rxc1 {[%clk 0:02:04]}  Rxb2 {[%clk 0:01:59]} 28. Rxb2 {[%clk 0:01:53]}  Qxb2 {[%clk 0:01:59]} 29. Rf1 {[%clk 0:01:54]}  h6 {[%clk 0:01:57]} 30. Nh3 {[%clk 0:01:50]}  g5 {[%clk 0:01:51]} 31. Kg2 {[%clk 0:01:41]}  Qf6 {[%clk 0:01:51]} 32. Qe4 {[%clk 0:01:37]}  Qf5 {[%clk 0:01:49]} 33. Qe2 {[%clk 0:01:31]}  Be5 {[%clk 0:01:46]} 34. Rd1 {[%clk 0:01:23]}  Qxe6 {[%clk 0:01:41]} 35. f4 {[%clk 0:01:23]}  gxf4 {[%clk 0:01:41]} 36. Nxf4 {[%clk 0:01:23]}  Qf7 {[%clk 0:01:38]} 37. Qg4+ {[%clk 0:01:21]}  Kh7 {[%clk 0:01:38]} 38. Rf1 {[%clk 0:01:16]}  Qf5 {[%clk 0:01:35]} 39. Qe2 {[%clk 0:01:08]}  Bxf4 {[%clk 0:01:26]} 40. Rxf4 {[%clk 0:01:07]}  Qd5+ {[%clk 0:01:26]} 41. Kh3 {[%clk 0:01:02]}  Rxf4 {[%clk 0:01:25]} 42. gxf4 {[%clk 0:01:01]}  Qf5+ {[%clk 0:01:25]} 43. Kg3 {[%clk 0:01:01]}  e5 {[%clk 0:01:25]} 44. Qb5 {[%clk 0:00:54]}  Qxf4+ {[%clk 0:01:25]} 45. Kg2 {[%clk 0:00:55]}  e4 {[%clk 0:01:25]} 46. Qd7+ {[%clk 0:00:54]}  Kg6 {[%clk 0:01:26]} 47. Qe6+ {[%clk 0:00:53]}  Kg5 {[%clk 0:01:25]} 48. Qe7+ {[%clk 0:00:47]}  Kf5 {[%clk 0:01:25]} 49. Qf8+ {[%clk 0:00:34]}  Ke5 {[%clk 0:01:25]} 50. Qe7+ {[%clk 0:00:34]}  Kd5 {[%clk 0:01:25]} 51. Qb7+ {[%clk 0:00:34]}  Kc4 {[%clk 0:01:21]} 52. Qa6+ {[%clk 0:00:32]}  Kd4 {[%clk 0:01:19]} 53. Qa1+ {[%clk 0:00:30]}  Kd5 {[%clk 0:01:17]} 54. Qa2+ {[%clk 0:00:28]}  Ke5 {[%clk 0:01:17]} 55. Qb2+ {[%clk 0:00:28]}  Kf5 {[%clk 0:01:15]} 56. Qb8 {[%clk 0:00:25]}  Qf3+ {[%clk 0:01:14]} 57. Kg1 {[%clk 0:00:25]}  Qe3+ {[%clk 0:01:13]} 58. Kg2 {[%clk 0:00:25]}  Qd2+ {[%clk 0:01:13]} 59. Kg1 {[%clk 0:00:24]}  e3 {[%clk 0:01:11]} 60. Qf8+ {[%clk 0:00:22]}  Ke4 {[%clk 0:01:11]} 61. Qe7+ {[%clk 0:00:17]}  Kd5 {[%clk 0:01:05]} 62. Qf7+ {[%clk 0:00:17]}  Kd4 {[%clk 0:01:05]} 63. Qf6+ {[%clk 0:00:17]}  Kc4 {[%clk 0:01:04]} 64. Qf7+ {[%clk 0:00:17]}  Kc3 {[%clk 0:01:04]} 65. Qf6+ {[%clk 0:00:14]}  Qd4 {[%clk 0:01:04]} 0-1


[Site "https://www.chess.com"]

[Event "Titled Tuesday Blitz January 31 Early 2023"]
[White "Fiorito, Francisco"]
[Black "Valle Maytin, Luis Enrique"]
[WhiteFideId "180165"]
[BlackFideId "3503666"]
[WhiteElo "2305"]
[BlackElo "2241"]
[Result "1-0"]
[Round "08"]
[TimeControl "180+2"]
[Date "2023.01.31"]
[WhiteClock "0:00:29"]
[BlackClock "0:00:02"]

1. c4 {[%clk 0:03:00]}  c5 {[%clk 0:02:58]} 2. Nf3 {[%clk 0:02:59]}  Nc6 {[%clk 0:02:55]} 3. Nc3 {[%clk 0:02:59]}  g6 {[%clk 0:02:55]} 4. d4 {[%clk 0:02:59]}  cxd4 {[%clk 0:02:55]} 5. Nxd4 {[%clk 0:03:00]}  Bg7 {[%clk 0:02:54]} 6. Nxc6 {[%clk 0:02:58]}  bxc6 {[%clk 0:02:53]} 7. g3 {[%clk 0:02:57]}  Nf6 {[%clk 0:02:54]} 8. Bg2 {[%clk 0:02:57]}  O-O {[%clk 0:02:52]} 9. O-O {[%clk 0:02:57]}  Rb8 {[%clk 0:02:49]} 10. b3 {[%clk 0:02:54]}  e6 {[%clk 0:02:38]} 11. Bf4 {[%clk 0:02:51]}  Ra8 {[%clk 0:02:29]} 12. Bd6 {[%clk 0:02:49]}  Re8 {[%clk 0:02:29]} 13. Rc1 {[%clk 0:02:41]}  Ba6 {[%clk 0:02:22]} 14. Na4 {[%clk 0:02:35]}  Qa5 {[%clk 0:01:58]} 15. Nc5 {[%clk 0:02:30]}  Rec8 {[%clk 0:01:46]} 16. b4 {[%clk 0:02:26]}  Qb6 {[%clk 0:01:38]} 17. Be5 {[%clk 0:02:14]}  d5 {[%clk 0:01:31]} 18. Qd4 {[%clk 0:02:10]}  Ne8 {[%clk 0:01:24]} 19. cxd5 {[%clk 0:02:04]}  cxd5 {[%clk 0:01:16]} 20. Bxg7 {[%clk 0:01:57]}  Nxg7 {[%clk 0:01:14]} 21. Rfe1 {[%clk 0:01:58]}  Bc4 {[%clk 0:01:11]} 22. Rxc4 {[%clk 0:01:51]}  dxc4 {[%clk 0:01:06]} 23. Bxa8 {[%clk 0:01:48]}  Qxb4 {[%clk 0:00:55]} 24. Nd3 {[%clk 0:01:36]}  Qd2 {[%clk 0:00:32]} 25. Qb2 {[%clk 0:00:36]}  Qxb2 {[%clk 0:00:07]} 26. Nxb2 {[%clk 0:00:37]}  c3 {[%clk 0:00:07]} 27. Rc1 {[%clk 0:00:32]}  Ne8 {[%clk 0:00:02]} 28. Be4 {[%clk 0:00:29]} 1-0


[Site "https://www.chess.com"]

[Event "Titled Tuesday Blitz January 31 Early 2023"]
[White "Delorme, Axel"]
[Black "Berezin, Viktor"]
[WhiteFideId "632023"]
[BlackFideId "14107872"]
[WhiteElo "2483"]
[BlackElo "2307"]
[Result "1-0"]
[Round "08"]
[TimeControl "180+2"]
[Date "2023.01.31"]
[WhiteClock "0:00:06"]
[BlackClock "0:00:04"]

1. e4 {[%clk 0:03:00]}  g6 {[%clk 0:02:58]} 2. d4 {[%clk 0:02:50]}  Bg7 {[%clk 0:02:57]} 3. Nc3 {[%clk 0:02:51]}  d6 {[%clk 0:02:58]} 4. Be3 {[%clk 0:02:51]}  Nf6 {[%clk 0:02:58]} 5. Qd2 {[%clk 0:02:41]}  c6 {[%clk 0:02:56]} 6. Bh6 {[%clk 0:02:35]}  O-O {[%clk 0:02:54]} 7. h4 {[%clk 0:02:30]}  e5 {[%clk 0:02:32]} 8. Nge2 {[%clk 0:02:19]}  Nbd7 {[%clk 0:02:30]} 9. O-O-O {[%clk 0:02:12]}  b5 {[%clk 0:02:28]} 10. f3 {[%clk 0:02:05]}  Qa5 {[%clk 0:02:21]} 11. Bxg7 {[%clk 0:02:02]}  Kxg7 {[%clk 0:02:21]} 12. h5 {[%clk 0:01:31]}  b4 {[%clk 0:02:20]} 13. hxg6 {[%clk 0:01:18]}  fxg6 {[%clk 0:02:17]} 14. Nb1 {[%clk 0:01:14]}  Nb6 {[%clk 0:01:45]} 15. Ng3 {[%clk 0:01:10]}  Qxa2 {[%clk 0:01:28]} 16. Qxb4 {[%clk 0:01:00]}  exd4 {[%clk 0:00:58]} 17. Qxd6 {[%clk 0:00:50]}  Be6 {[%clk 0:00:44]} 18. Qa3 {[%clk 0:00:32]}  Qxa3 {[%clk 0:00:33]} 19. Nxa3 {[%clk 0:00:33]}  c5 {[%clk 0:00:34]} 20. Ba6 {[%clk 0:00:28]}  Rfd8 {[%clk 0:00:30]} 21. Ne2 {[%clk 0:00:28]}  Ne8 {[%clk 0:00:26]} 22. Nf4 {[%clk 0:00:27]}  Bf7 {[%clk 0:00:25]} 23. Rhe1 {[%clk 0:00:20]}  Nc7 {[%clk 0:00:25]} 24. Bf1 {[%clk 0:00:19]}  c4 {[%clk 0:00:26]} 25. Ne2 {[%clk 0:00:13]}  Ne6 {[%clk 0:00:18]} 26. Nb5 {[%clk 0:00:13]}  d3 {[%clk 0:00:14]} 27. cxd3 {[%clk 0:00:10]}  cxd3 {[%clk 0:00:14]} 28. Nec3 {[%clk 0:00:11]}  a6 {[%clk 0:00:08]} 29. Na3 {[%clk 0:00:09]}  Nc5 {[%clk 0:00:07]} 30. Re3 {[%clk 0:00:09]}  Rac8 {[%clk 0:00:06]} 31. Bxd3 {[%clk 0:00:09]}  Nb3+ {[%clk 0:00:06]} 32. Kb1 {[%clk 0:00:08]}  Nd4 {[%clk 0:00:06]} 33. Bf1 {[%clk 0:00:07]}  Bb3 {[%clk 0:00:06]} 34. Rc1 {[%clk 0:00:07]}  Rb8 {[%clk 0:00:05]} 35. Ne2 {[%clk 0:00:06]}  Ne6 {[%clk 0:00:03]} 36. Rxb3 {[%clk 0:00:05]}  Rd2 {[%clk 0:00:03]} 37. Rc6 {[%clk 0:00:03]}  Na4 {[%clk 0:00:01]} 38. Rxb8 {[%clk 0:00:02]}  Rd1+ {[%clk 0:00:01]} 39. Ka2 {[%clk 0:00:02]}  Rd2 {[%clk 0:00:02]} 40. Rb7+ {[%clk 0:00:02]}  Kf6 {[%clk 0:00:02]} 41. Nf4 {[%clk 0:00:01]}  Kg5 {[%clk 0:00:02]} 42. Rxe6 {[%clk 0:00:02]}  Kxf4 {[%clk 0:00:02]} 43. Rf6+ {[%clk 0:00:02]}  Ke3 {[%clk 0:00:03]} 44. Rc6 {[%clk 0:00:03]}  Kf2 {[%clk 0:00:03]} 45. Bxa6 {[%clk 0:00:03]}  Kxg2 {[%clk 0:00:04]} 46. Rb4 {[%clk 0:00:03]}  h5 {[%clk 0:00:04]} 47. Rxa4 {[%clk 0:00:04]}  h4 {[%clk 0:00:05]} 48. Rac4 {[%clk 0:00:05]}  Kxf3 {[%clk 0:00:05]} 49. Rc2 {[%clk 0:00:06]}  h3 {[%clk 0:00:06]} 50. R6c3+ {[%clk 0:00:06]}  Kxe4 {[%clk 0:00:04]} 51. Rxd2 {[%clk 0:00:06]}  h2 {[%clk 0:00:04]} 52. Rxh2 {[%clk 0:00:06]} 1-0


[Site "https://www.chess.com"]

[Event "Titled Tuesday Blitz January 31 Early 2023"]
[White "Vestby-Ellingsen, Mads"]
[Black "Estrada Nieto, Julian"]
[WhiteFideId "1520857"]
[BlackFideId "5101018"]
[WhiteElo "2387"]
[BlackElo "2215"]
[Result "1-0"]
[Round "08"]
[TimeControl "180+2"]
[Date "2023.01.31"]
[WhiteClock "0:00:26"]
[BlackClock "0:00:37"]

1. Nh3 {[%clk 0:03:00]}  d5 {[%clk 0:02:59]} 2. g3 {[%clk 0:03:00]}  Nf6 {[%clk 0:02:58]} 3. Bg2 {[%clk 0:02:59]}  c6 {[%clk 0:02:58]} 4. O-O {[%clk 0:02:56]}  Bxh3 {[%clk 0:02:55]} 5. Bxh3 {[%clk 0:02:53]}  e5 {[%clk 0:02:49]} 6. d4 {[%clk 0:02:53]}  Bd6 {[%clk 0:02:39]} 7. dxe5 {[%clk 0:02:40]}  Bxe5 {[%clk 0:02:39]} 8. Nd2 {[%clk 0:02:40]}  O-O {[%clk 0:02:39]} 9. Bg2 {[%clk 0:02:39]}  Nbd7 {[%clk 0:02:38]} 10. e4 {[%clk 0:02:38]}  dxe4 {[%clk 0:02:35]} 11. Nxe4 {[%clk 0:02:38]}  Nxe4 {[%clk 0:02:35]} 12. Bxe4 {[%clk 0:02:38]}  Nf6 {[%clk 0:02:35]} 13. Bf3 {[%clk 0:02:37]}  Qb6 {[%clk 0:02:26]} 14. c3 {[%clk 0:02:36]}  Rad8 {[%clk 0:02:24]} 15. Qb3 {[%clk 0:02:35]}  Qxb3 {[%clk 0:02:17]} 16. axb3 {[%clk 0:02:35]}  a6 {[%clk 0:02:18]} 17. Be3 {[%clk 0:02:18]}  Nd5 {[%clk 0:02:17]} 18. Bc5 {[%clk 0:02:17]}  Bd6 {[%clk 0:02:02]} 19. Ba7 {[%clk 0:02:00]}  Rfe8 {[%clk 0:01:47]} 20. Rfd1 {[%clk 0:01:57]}  Bc7 {[%clk 0:01:42]} 21. Bc5 {[%clk 0:01:34]}  f5 {[%clk 0:01:38]} 22. Rd2 {[%clk 0:01:25]}  Nf6 {[%clk 0:01:36]} 23. Rad1 {[%clk 0:01:22]}  Rxd2 {[%clk 0:01:36]} 24. Rxd2 {[%clk 0:01:22]}  Kf7 {[%clk 0:01:30]} 25. Be3 {[%clk 0:01:15]}  Rd8 {[%clk 0:01:26]} 26. Rxd8 {[%clk 0:01:09]}  Bxd8 {[%clk 0:01:26]} 27. Kf1 {[%clk 0:01:09]}  Ke6 {[%clk 0:01:26]} 28. Ke2 {[%clk 0:01:09]}  Nd5 {[%clk 0:01:25]} 29. Bd2 {[%clk 0:01:06]}  Bb6 {[%clk 0:01:22]} 30. c4 {[%clk 0:01:03]}  Nf6 {[%clk 0:01:22]} 31. b4 {[%clk 0:01:02]}  Bd4 {[%clk 0:01:20]} 32. b3 {[%clk 0:01:00]}  Ne4 {[%clk 0:01:18]} 33. Be1 {[%clk 0:00:58]}  g5 {[%clk 0:01:13]} 34. g4 {[%clk 0:00:43]}  Ke5 {[%clk 0:01:06]} 35. gxf5 {[%clk 0:00:42]}  Kxf5 {[%clk 0:01:06]} 36. Kd3 {[%clk 0:00:39]}  Nxf2+ {[%clk 0:00:44]} 37. Kxd4 {[%clk 0:00:38]}  Nh3 {[%clk 0:00:41]} 38. Be4+ {[%clk 0:00:34]}  Kf4 {[%clk 0:00:41]} 39. Bg3+ {[%clk 0:00:32]}  Kg4 {[%clk 0:00:40]} 40. Bxh7 {[%clk 0:00:32]}  Ng1 {[%clk 0:00:39]} 41. Bg8 {[%clk 0:00:28]}  Ne2+ {[%clk 0:00:38]} 42. Kc5 {[%clk 0:00:28]}  Nxg3 {[%clk 0:00:36]} 43. hxg3 {[%clk 0:00:27]}  Kxg3 {[%clk 0:00:37]} 44. Kb6 {[%clk 0:00:26]}  Kf3 {[%clk 0:00:37]} 45. Be6 {[%clk 0:00:25]}  g4 {[%clk 0:00:37]} 46. Bxg4+ {[%clk 0:00:25]}  Kxg4 {[%clk 0:00:37]} 47. Kxb7 {[%clk 0:00:26]} 1-0


[Site "https://www.chess.com"]

[Event "Titled Tuesday Blitz January 31 Early 2023"]
[White "Ljukin, Sergei"]
[Black "Mushini Ajay"]
[WhiteFideId "14102200"]
[BlackFideId "35066188"]
[WhiteElo "2362"]
[BlackElo "2310"]
[Result "0-1"]
[Round "08"]
[TimeControl "180+2"]
[Date "2023.01.31"]
[WhiteClock "0:00:03"]
[BlackClock "0:01:47"]

1. e4 {[%clk 0:02:50]}  e5 {[%clk 0:02:52]} 2. Nf3 {[%clk 0:02:48]}  Nc6 {[%clk 0:02:52]} 3. Bb5 {[%clk 0:02:47]}  Nf6 {[%clk 0:02:51]} 4. Qe2 {[%clk 0:02:47]}  d6 {[%clk 0:02:48]} 5. c3 {[%clk 0:02:46]}  a6 {[%clk 0:02:48]} 6. Ba4 {[%clk 0:02:46]}  b5 {[%clk 0:02:48]} 7. Bb3 {[%clk 0:02:46]}  Na5 {[%clk 0:02:48]} 8. Bc2 {[%clk 0:02:46]}  c5 {[%clk 0:02:47]} 9. d4 {[%clk 0:02:44]}  cxd4 {[%clk 0:02:45]} 10. cxd4 {[%clk 0:02:44]}  Nc6 {[%clk 0:02:46]} 11. d5 {[%clk 0:02:17]}  Ne7 {[%clk 0:02:44]} 12. O-O {[%clk 0:01:56]}  Ng6 {[%clk 0:02:43]} 13. h3 {[%clk 0:01:55]}  Be7 {[%clk 0:02:41]} 14. Be3 {[%clk 0:01:55]}  O-O {[%clk 0:02:41]} 15. Nbd2 {[%clk 0:01:55]}  Nh5 {[%clk 0:02:40]} 16. Rfc1 {[%clk 0:00:26]}  Nhf4 {[%clk 0:02:36]} 17. Qf1 {[%clk 0:00:26]}  h6 {[%clk 0:02:09]} 18. a4 {[%clk 0:00:20]}  Bd7 {[%clk 0:02:07]} 19. a5 {[%clk 0:00:19]}  Rc8 {[%clk 0:02:06]} 20. Bd1 {[%clk 0:00:14]}  f5 {[%clk 0:02:02]} 21. Bc2 {[%clk 0:00:11]}  Rxc2 {[%clk 0:01:56]} 22. Rxc2 {[%clk 0:00:10]}  fxe4 {[%clk 0:01:57]} 23. Nxe4 {[%clk 0:00:04]}  Bf5 {[%clk 0:01:55]} 24. Nfd2 {[%clk 0:00:04]}  Nxd5 {[%clk 0:01:53]} 25. Qd3 {[%clk 0:00:03]}  Nxe3 {[%clk 0:01:47]} 0-1


[Site "https://www.chess.com"]